Cogmind - Beta 12 @@@ ROGUE MODE // 2023.04.27 @ 21:16:37 Player: Mr Goldstein Result: Self-destructed Performance ------------- Evolutions (3) 1500 Regions Visited (6) 1200 Robots Destroyed (0) 0 Value Destroyed (0) 0 Prototype IDs (1) 20 Alien Tech Used (0) 0 Bonus (834) 834 TOTAL SCORE: 3554 Bonus ------- Pacifist 834 Cogmind --------- Core Integrity 700/700 Matter 290/300 Energy 100/100 System Corruption 0% Temperature Cool (0) Movement Flying (27) Location -7/Factory Parts ------- > --- POWER (2) -------- Backup Power III Backup Power III > --- PROPULSION (6) --- Improved Cesium-ion Thruster Advanced Surge Thruster > --- UTILITY (2) ------ Visual Processing Unit System Shield > --- WEAPON (3) ------- Improved Datajack > --- INVENTORY (5) ---- Light Nuclear Core Cooling System System Shield Improved Datajack Peak State ------------ > --- POWER ------------ Backup Power III Backup Power III > --- PROPULSION ------- Improved Cesium-ion Thruster Advanced Surge Thruster > --- UTILITY ---------- Visual Processing Unit System Shield > --- WEAPON ----------- Backup Laser III Improved Datajack > --- INVENTORY -------- Light Nuclear Core Cooling System System Shield Improved Datajack [Rating: 30] Favorites ----------- Power Backup Power III Engine Backup Power III Propulsion Armored Treads Treads Armored Treads Flight Unit Improved Cesium-ion Thruster Utility Visual Processing Unit Processor Visual Processing Unit Hackware System Shield Weapon Improved Datajack Energy Gun Backup Laser III Special Melee Weapon Improved Datajack Build | -11 -10 -9 -8 -7 -7 -7 ------- Run | Jun Mat Mat Mat Fac Was Fac Slots Evolved 6 | . . 2 2 2 . . Power 1 | . . . . 1 . . Propulsion 4 | . . 2 1 1 . . Utility . | . . . . . . . Weapon 1 | . . . 1 . . . Parts Attached 9 | . . 5 . 3 1 . Power . | . . . . . . . Engine . | . . . . . . . Core . | . . . . . . . Reactor . | . . . . . . . Propulsion 6 | . . 4 . 1 1 . Treads 4 | . . 4 . . . . Leg . | . . . . . . . Wheel . | . . . . . . . Hover . | . . . . . . . Flight 2 | . . . . 1 1 . Utility 2 | . . 1 . 1 . . Device . | . . . . . . . Storage . | . . . . . . . Processor 1 | . . 1 . . . . Hackware 1 | . . . . 1 . . Protection . | . . . . . . . Artifact . | . . . . . . . Weapon 1 | . . . . 1 . . Energy Gun . | . . . . . . . Energy Cannon . | . . . . . . . Ballistic Gun . | . . . . . . . Ballistic Cannon . | . . . . . . . Launcher . | . . . . . . . Special Weapon . | . . . . . . . Impact Weapon . | . . . . . . . Slashing Weapon . | . . . . . . . Piercing Weapon . | . . . . . . . Special Melee Weapon 1 | . . . . 1 . . Unidentified Prototypes 1 | . . . . 1 . . Parts Lost . | . . . . . . . Power . | . . . . . . . Propulsion . | . . . . . . . Utility . | . . . . . . . Weapon . | . . . . . . . Highest Loss Streak . | . . . . . . . To Critical Strikes . | . . . . . . . Average Slot Usage (%) 32 | . . 26 45 26 39 53 Engine 1 | . . . . . 3 15 Treads 16 | . . 22 36 5 . . Flight 3 | . . . . 5 11 15 Processor 6 | . . 4 9 7 7 7 Hackware 1 | . . . . 2 7 7 Special Melee Weapon 2 | . . . . 4 7 7 Naked Turns 64 | . 24 40 . . . . Heaviest Build 5 | . . . . 1 5 5 Greatest Support 10 | 3 3 3 3 6 10 10 Greatest Overweight (x) . | . . . . . . . Average Overweight (x) . | . . . . . . . Largest Inventory Capacity 5 | 5 5 5 5 5 5 5 Average Capacity 5 | 5 5 5 5 5 5 5 Most Carried 5 | . . 5 3 4 4 4 Average Carried 2 | . . 1 3 2 4 4 Final Capacity 5 | 5 5 5 5 5 5 5 Final Carried 4 | . . 3 3 4 4 4 Class Distribution -------------------- 100% | Mutant Dominant Class ---------------- Mutant | -10/Materials Mutant | -9/Materials Mutant | -8/Materials Mutant | -7/Factory Mutant | -7/Waste Mutant | -7/Factory Resources | -11 -10 -9 -8 -7 -7 -7 ----------- Run | Jun Mat Mat Mat Fac Was Fac Matter Collected 268 | 115 . . . . 153 . Remotely . | . . . . . . . Salvage Created . | . . . . . . . Parts . | . . . . . . . Haulers Intercepted . | . . . . . . . Recyclers Shooed . | . . . . . . . Parts Field Recycled . | . . . . . . . Retrieved Matter . | . . . . . . . Parts Self-Destructed . | . . . . . . . Prevented . | . . . . . . . Kills | -11 -10 -9 -8 -7 -7 -7 ------- Run | Jun Mat Mat Mat Fac Was Fac Combat Hostiles Destroyed . | . . . . . . . Classes Destroyed . | . . . . . . . Best Kill Streak . | . . . . . . . Combat Bots Only . | . . . . . . . Max Kills in Single Turn . | . . . . . . . Gunslinging . | . . . . . . . Exploded . | . . . . . . . Melee . | . . . . . . . Uniques/NPCs Destroyed . | . . . . . . . Combat | -11 -10 -9 -8 -7 -7 -7 -------- Run | Jun Mat Mat Mat Fac Was Fac Damage Taken 750 | . 35 172 527 . . 16 Core 197 | . 35 74 88 . . . Absorbed by Shields . | . . . . . . . Regen/Repaired (Parts) 29 | . . . . . 29 . Core Remaining (%) 87 | 100 86 81 84 . . . Volleys Fired . | . . . . . . . Largest . | . . . . . . . Hottest . | . . . . . . . Shots Fired . | . . . . . . . Gun . | . . . . . . . Cannon . | . . . . . . . Launcher . | . . . . . . . Special . | . . . . . . . Kinetic . | . . . . . . . Thermal . | . . . . . . . Explosive . | . . . . . . . Electromagnetic . | . . . . . . . Robot Hit Streak . | . . . . . . . Robot Miss Streak . | . . . . . . . Penetration Max . | . . . . . . . Secondary Targets . | . . . . . . . Shots Hit Robots 3 | . . . . 2 . 1 Core Hits 1 | . . . 1 . . . Critical Kills . | . . . . . . . Critical Parts Destroyed . | . . . . . . . Critical Strikes . | . . . . . . . Melee Attacks 4 | . . . . 3 . 1 Impact . | . . . . . . . Slashing . | . . . . . . . Piercing . | . . . . . . . Sneak Attacks 3 | . . . . 2 . 1 Combat Hostiles . | . . . . . . . Follow-up Attacks . | . . . . . . . Damage Inflicted 20 | . 5 5 10 . . . Guns . | . . . . . . . Cannons . | . . . . . . . Explosions . | . . . . . . . Melee . | . . . . . . . Ramming 20 | . 5 5 10 . . . Kinetic . | . . . . . . . Thermal . | . . . . . . . Explosive . | . . . . . . . Electromagnetic . | . . . . . . . Impact . | . . . . . . . Slashing . | . . . . . . . Piercing . | . . . . . . . Highest Corruption . | . . . . . . . Average Corruption . | . . . . . . . Corruption Purged . | . . . . . . . Corruption Blocked . | . . . . . . . Overload Shots . | . . . . . . . Overflow Damage . | . . . . . . . Projectiles . | . . . . . . . Explosions . | . . . . . . . Melee . | . . . . . . . Knockbacks . | . . . . . . . Impact . | . . . . . . . Kinetic . | . . . . . . . Secondary . | . . . . . . . Self-Inflicted Damage 9 | . 2 2 5 . . . Shots . | . . . . . . . Rammed 4 | . 1 1 2 . . . Targets Rammed 4 | . 1 1 2 . . . Kicked . | . . . . . . . Crushed . | . . . . . . . Highest Temperature . | . . . . . . . Average Temperature . | . . . . . . . Received Heat Transfer 204 | . 18 72 108 . . 6 Siege Activations . | . . . . . . . Robots Corrupted . | . . . . . . . Combat Hostiles . | . . . . . . . Parts Fried . | . . . . . . . Impact Corruptions . | . . . . . . . Robots Melted . | . . . . . . . Combat Hostiles . | . . . . . . . Parts Melted . | . . . . . . . Heat Transferred . | . . . . . . . Parts Sabotaged . | . . . . . . . Parts Stolen . | . . . . . . . Parts Stripped . | . . . . . . . Power Chain Reactions . | . . . . . . . Missiles Intercepted . | . . . . . . . Alert | -11 -10 -9 -8 -7 -7 -7 ------- Run | Jun Mat Mat Mat Fac Was Fac Peak Influence 272 | . 30 42 272 167 58 55 Initial 123 | . . 12 17 123 58 40 Average 85 | . 13 30 116 141 58 43 Maximum Alert Level 1 | . . . 1 . . . Low Security (%) 96 | 100 100 100 86 100 100 100 Level 1 3 | . . . 13 . . . Level 2 . | . . . . . . . Level 3 . | . . . . . . . Level 4 . | . . . . . . . Level 5 . | . . . . . . . High Security . | . . . . . . . Max Security . | . . . . . . . Squads Dispatched 4 | . 1 . 3 . . . Investigation 1 | . 1 . . . . . Extermination . | . . . . . . . Reinforcement 3 | . . . 3 . . . Assault . | . . . . . . . Garrison . | . . . . . . . Intercept . | . . . . . . . Searches Triggered . | . . . . . . . Construction Impeded . | . . . . . . . Haulers Reinforced . | . . . . . . . Active Scanning Responses . | . . . . . . . Cargo Convoy Interrupts . | . . . . . . . Stealth | -11 -10 -9 -8 -7 -7 -7 --------- Run | Jun Mat Mat Mat Fac Was Fac Distress Signals 3 | . . . 3 . . . Communications Jammed . | . . . . . . . Distress Signals . | . . . . . . . Times Spotted 36 | . 2 6 26 1 . 1 Peak Tracking Total 14 | . 2 6 14 1 . 1 Tactical Retreats 4 | . . . 4 . . . Traps | -11 -10 -9 -8 -7 -7 -7 ------- Run | Jun Mat Mat Mat Fac Was Fac Traps Triggered 2 | . 1 . . 1 . . Indirectly . | . . . . . . . Trap Hack Attempts 4 | . . . . 4 . . Triggered . | . . . . . . . Disarmed . | . . . . . . . Reprogrammed . | . . . . . . . Reused . | . . . . . . . Traps Extracted . | . . . . . . . Installed . | . . . . . . . Triggered . | . . . . . . . Machines | -11 -10 -9 -8 -7 -7 -7 ---------- Run | Jun Mat Mat Mat Fac Was Fac Machines Disabled . | . . . . . . . Max in Single Turn . | . . . . . . . Machines Repaired . | . . . . . . . Machines Sabotaged . | . . . . . . . Overloaded Fab Kills . | . . . . . . . Hacking | -11 -10 -9 -8 -7 -7 -7 --------- Run | Jun Mat Mat Mat Fac Was Fac Machines Accessed 2 | . . . . 2 . . Terminals 1 | . . . . 1 . . Fabricators 1 | . . . . 1 . . Repair Stations . | . . . . . . . Recycling Units . | . . . . . . . Scanalyzers . | . . . . . . . Garrison Access . | . . . . . . . Total Hacks 5 | . . . . 5 . . Successful 2 | . . . . 2 . . Failed 3 | . . . . 3 . . Catastrophic . | . . . . . . . Database Lockouts . | . . . . . . . Manual . | . . . . . . . Terminals 2 | . . . . 2 . . Fabricators 3 | . . . . 3 . . Repair Stations . | . . . . . . . Recycling Units . | . . . . . . . Scanalyzers . | . . . . . . . Garrison Access . | . . . . . . . Terminal Hacks 1 | . . . . 1 . . Zone Layout 1 | . . . . 1 . . Fabricator Hacks 1 | . . . . 1 . . Build 1 | . . . . 1 . . Repair Station Hacks . | . . . . . . . Recycling Unit Hacks . | . . . . . . . Scanalyzer . | . . . . . . . Garrison Access Hacks . | . . . . . . . Unauthorized Hacks . | . . . . . . . Terminals . | . . . . . . . Fabricators . | . . . . . . . Repair Stations . | . . . . . . . Recycling Units . | . . . . . . . Scanalyzers . | . . . . . . . Garrison Access . | . . . . . . . Data Cores Recovered . | . . . . . . . Used . | . . . . . . . Hacking Detections 1 | . . . . 1 . . Full Trace Events . | . . . . . . . Feedback Events . | . . . . . . . Feedback Blocked . | . . . . . . . Robot Schematics Acquired . | . . . . . . . Robots Built . | . . . . . . . Authchips . | . . . . . . . Time . | . . . . . . . Total Robot Build Rating . | . . . . . . . Part Schematics Acquired . | . . . . . . . Parts Built . | . . . . . . . Authchips . | . . . . . . . Time 47 | . . . . 47 . . Total Part Build Rating . | . . . . . . . Parts Repaired . | . . . . . . . Time . | . . . . . . . Parts Recycled . | . . . . . . . Recycled Matter . | . . . . . . . Retrieved Matter . | . . . . . . . Retrieved Components . | . . . . . . . Parts Scanalyzed . | . . . . . . . Part Schematics Acquired . | . . . . . . . Parts Damaged . | . . . . . . . Bothacking | -11 -10 -9 -8 -7 -7 -7 ------------ Run | Jun Mat Mat Mat Fac Was Fac Used RIF Installer . | . . . . . . . Robots Hacked 3 | . . . . 2 . 1 Non-combat 3 | . . . . 2 . 1 Combat . | . . . . . . . Robot Hacks Applied 3 | . . . . 2 . 1 find_chute 1 | . . . . 1 . . find_dsf 2 | . . . . 1 . 1 Relay Couplers Released . | . . . . . . . Fabnet Peak Effective % . | . . . . . . . Robots Rewired . | . . . . . . . Allies Hacked . | . . . . . . . Hacks Repelled . | . . . . . . . Allies | -11 -10 -9 -8 -7 -7 -7 -------- Run | Jun Mat Mat Mat Fac Was Fac Total Allies 20 | . . . . . 20 . Largest Group 20 | . . . . . 20 1 Highest-Rated Group 548 | . . . . . 548 14 Highest-Rated Ally 35 | . . . . . 35 14 Total Orders . | . . . . . . . Ally Attacks 2 | . . . . . . 2 Total Damage 20 | . . . . . . 20 Kills . | . . . . . . . Allies Corrupted . | . . . . . . . Allies Melted . | . . . . . . . Intel | -11 -10 -9 -8 -7 -7 -7 ------- Run | Jun Mat Mat Mat Fac Was Fac Robot Analysis Total . | . . . . . . . Derelict Logs Recovered . | . . . . . . . Drone Launches . | . . . . . . . Drone Recoveries . | . . . . . . . Exploration | -11 -10 -9 -8 -7 -7 -7 ------------- Run | Jun Mat Mat Mat Fac Was Fac Turns Passed 379 | 10 24 82 98 105 47 13 Spaces Moved 790 | 20 47 137 191 243 108 44 Core 430 | 20 47 137 191 35 . . Treads . | . . . . . . . Legs . | . . . . . . . Wheels . | . . . . . . . Hover . | . . . . . . . Flight 360 | . . . . 208 108 44 Fastest Speed 27 | 50 50 50 50 35 27 27 Average Speed 42 | 50 50 50 50 37 33 27 Slowest Speed 50 | 50 50 50 50 50 35 27 Overloaded Moves . | . . . . . . . Propulsion Burnouts . | . . . . . . . Robots Hopped 4 | . . . . 4 . . Cave-ins Triggered . | . . . . . . . Exploration Rate (%) 22 | 3 22 24 29 8 72 2 Regions Visited 6 Branch Regions . Pre-discovered Areas . | . . . . . . . Known Exits Taken . | . . . . . . . Unknown Exits Taken 4 | 1 1 1 1 . . . Scrap Searched . | . . . . . . . Spaces Dug . | . . . . . . . Terrain Destroyed . | . . . . . . . Melee . | . . . . . . . Projectile . | . . . . . . . AOE . | . . . . . . . Terrain Rammed . | . . . . . . . Walls Destroyed . | . . . . . . . Machines Disabled . | . . . . . . . Actions | -11 -10 -9 -8 -7 -7 -7 --------- Run | Jun Mat Mat Mat Fac Was Fac Total 823 | 19 47 148 192 255 117 45 Wait 8 | . . . . . 8 . Move 778 | 19 47 136 190 235 107 44 Hop 4 | . . . . 4 . . Pick Up 8 | . . 6 . 2 . . Fast Attach 5 | . . 2 . 2 1 . Attach 4 | . . 3 . 1 . . Detach . | . . . . . . . Swap . | . . . . . . . Drop 5 | . . . . 4 1 . Fire . | . . . . . . . Melee 4 | . . . . 3 . 1 Ram 3 | . . 1 2 . . . Kick . | . . . . . . . Crush . | . . . . . . . Escape Stasis . | . . . . . . . Rewire . | . . . . . . . Trap 4 | . . . . 4 . . Miscellaneous . | . . . . . . . Route ------- -11/Junkyard -10/Materials -9/Materials (discovered 3 exits: [*Mat] / [*Min] / [*Sto]) -8/Materials -7/Factory -7/Waste -7/Factory History --------- Turn | Location | Event 4 | -11/Junkyard | Discovered new exit (range 15) 11 | -11/Junkyard | Entered Materials 28 | -10/Materials | Discovered new exit (range 16) 35 | -10/Materials | Entered another Materials area 35 | -9/Materials | Evolved 2 slots: Propulsion x2 35 | -9/Materials | Discovered new exit (range 15) 42 | -9/Materials | Discovered new exit (range 10) 105 | -9/Materials | Discovered new exit (range 6) 117 | -9/Materials | Entered another Materials area 117 | -8/Materials | Evolved 2 slots: Propulsion x1, Weapon x1 210 | -8/Materials | Discovered new exit (range 11) 215 | -8/Materials | Entered Factory 215 | -7/Factory | Evolved 2 slots: Power x1, Propulsion x1 310 | -7/Factory | Build established: Mutant 320 | -7/Factory | Sucked down chute 320 | -7/Factory | Entered Waste 321 | -7/Waste | Joined by Warlord forces that had cleared the area 344 | -7/Waste | Discovered new exit (range 14) 367 | -7/Waste | Entered Factory 367 | -7/Factory | Accompanied by 1 ally 380 | -7/Factory | Self-destructed Last Messages --------------- GOAL=ESCAPE 00321_ AK-B6G(m): "Oh look, everyone, this must be the new model sent by Warlord! We've already cleared this area, lead the way!" 00325_ AK-B6G(m) repairs YH-253(g). 00342_ Acquired 153 matter. 00344_ EXIT=FOUND 00347_ Acquired Broken Adv. Surge Thruster. 00353_ PV-8TN(m) fixes Adv. Surge Thruster. 00355_ PV-8TN(m) fits Backup Laser III on Cogmind. 00357_ PV-8TN(m) fits Backup Power III on Cogmind. 00361_ PV-8TN(m) repairs Adv. Surge Thruster. 00362_ Dropped Backup Laser III. 00363_ 78-GV6(m) repairs Imp. Heat Sink. LOCATION=UNKNOWN GOAL=ESCAPE 00379_ Sneak attack on A-02 Transporter. 00379_ Jacked A-02 Transporter... >>find_dsf Pinpointed nearest DSF Access: (38,91) (added to intel). 00380_ ALERT: All DSF locations entering lockdown mode. Map ----- +----------------------------------------------------+ | | | | | | | | | | | | | | | | | | | | | | | | | | | | | ????????###??#????###########???????????????????? | | ??????? ?? ????# #???????????????????? | | ??????"" "" ?????# #???????????????????? | | ??????"" "" ?????? ????????????????????? | | ???????"" ""????????? ??????????????????????? | | ???????"" ""???????#+##+#???????????????????????? | | ????????" "????????# #???????????????????????? | | ???????? ????????# #???????????????????????? | | #########+########## ###### #???????? | | # # +???????? | | # # ###########+##+### #???????? | | # # #???????# @ #????????????????????? | | # + #???????# a #????????????????????? | | #""" # #???????# #????????????????????? | | #""" # #???????# #????????????????????? | | #""" # #???????# #????????????????????? | | # # #???????# #????????????????????? | | #""" # #???????########????????????????????? | | #""" # #############???????????????????????? | | #""" # # ????????????????????????? | | # # # ?????????????????????????? | | ?###### # ??????????????????????????? | | ??????# # """???????????????????????????? | | ??????# # """""???????????????????????????? | | ??????# # """"" #??????????????????????? | | ??????# + #??????????????????????? | | ??????# # +??????????????????????? | | ??????# # """ #??????????????????????? | | ??????# # """S"" #??????????????????????? | | ??????# # """""" #??????????????????????? | | ??????####### ? #??????????????????????? | | ????????????######+##????#??????????????????????? | | ????????????????????????????????????????????????? | | ????????????????????????????????????????????????? | | ????????????????????????????????????????????????? | | ????????????????????????????????????????????????? | +----------------------------------------------------+ Best States ------------- Heat Dissipation 34 Energy Generation 17 Energy Capacity 100 Matter Stores 290 Matter Capacity 300 Sight Range 18 Terrain Scan Density 10 Evasion (%) 64 Defensive Hacking 10 Item Schematics ----------------- None Robot Schematics ------------------ None Fabricated ------------ Nothing Alien Tech Used ----------------- None Achievements -------------- None Challenges ------------ None Game ------ Seed LinearPlatingNukerbomber Manual? 0 Play Time 00:06:00 Cumulative 153.3 hours Start 2023.04.27 @ 21:11:00 End 2023.04.27 @ 21:16:37 Sessions 1 Manual Loads 0 Difficulty Rogue Special Mode None Game No. 455 Rogue 455 Adventurer 0 Explorer 0 Win Type - Total 7 Types 6/0/0/1/0/0/0/0/0 Lore% 66 Gallery% 71 Achievement% 61 Wizard Run 0 Options --------- ASCII 0 Keyboard 0 Movement Numpad Keybinds 0 Fullscreen 1 Font 16/SmallcapsGlow Map View 75x55 Tactical HUD 1 Map Filters NONE Filters NONE Steam 1 RUN: 9d183820-1829-4604-8301-2e4b9f89cd65